Cogmind - Beta 16.1 @@@ ROGUE MODE // 2026.03.18 @ 17:11:28 Player: MatMK Result: Self-destructed Performance ------------- Evolutions (2) 1000 Regions Visited (5) 1000 Robots Destroyed (14) 70 Value Destroyed (198) 198 Prototype IDs (2) 40 Alien Tech Used (0) 0 Bonus (0) 0 TOTAL SCORE: 2308 Bonus ------- None Cogmind --------- Core Integrity 422/550 Matter 129/300 Energy 82/100 System Corruption 0% Temperature Cool (0) Movement Core (250) Ox4 Location -8/Materials Parts ------- > --- POWER (1) -------- (None) > --- PROPULSION (3) --- (None) > --- UTILITY (5) ------ Small Storage Unit Improved Sensor Array Improved Signal Interpreter Improved Terrain Scanner Terrain Scan Processor > --- WEAPON (2) ------- Light Assault Rifle Flak Cannon > --- INVENTORY (8) ---- Recoil Stabilizer Hardened Medium Armor Plating Tractor Beam Assault Rifle Grenade Launcher Datajack Axe Peak State ------------ > --- POWER ------------ Light Ion Engine > --- PROPULSION ------- Aluminum Leg Aluminum Leg Aluminum Leg > --- UTILITY ---------- Small Storage Unit Improved Sensor Array Improved Signal Interpreter Improved Terrain Scanner Terrain Scan Processor > --- WEAPON ----------- Light Assault Rifle Axe > --- INVENTORY -------- Light Ion Engine Recoil Stabilizer Hardened Medium Armor Plating Tractor Beam Flak Cannon Grenade Launcher Datajack [Rating: 21] Favorites ----------- Power Light Ion Engine Engine Light Ion Engine Propulsion Aluminum Leg Leg Aluminum Leg Utility Small Storage Unit Device Seismic Detector Storage Small Storage Unit Processor Terrain Scan Processor Weapon Medium Laser Energy Gun Medium Laser Ballistic Gun Light Assault Rifle Ballistic Cannon Flak Cannon Launcher Grenade Launcher Slashing Weapon Axe Build | -11 -10 -10 -10 -9 -8 ------- Run | Yrd Mat Min Exi Min Mat Slots Evolved 4 | . . . . . 4 Power . | . . . . . . Propulsion 1 | . . . . . 1 Utility 3 | . . . . . 3 Weapon . | . . . . . . Parts Attached 21 | 7 3 . . . 11 Power 4 | 1 2 . . . 1 Engine 4 | 1 2 . . . 1 Core . | . . . . . . Reactor . | . . . . . . Propulsion 3 | 2 . . . . 1 Treads . | . . . . . . Leg 3 | 2 . . . . 1 Wheel . | . . . . . . Hover . | . . . . . . Flight . | . . . . . . Utility 7 | 2 . . . . 5 Device 4 | 1 . . . . 3 Storage 1 | 1 . . . . . Processor 2 | . . . . . 2 Hackware . | . . . . . . Protection . | . . . . . . Artifact . | . . . . . . Weapon 7 | 2 1 . . . 4 Energy Gun 1 | 1 . . . . . Energy Cannon . | . . . . . . Ballistic Gun 3 | 1 1 . . . 1 Ballistic Cannon 1 | . . . . . 1 Launcher 1 | . . . . . 1 Special Weapon . | . . . . . . Impact Weapon . | . . . . . . Slashing Weapon 1 | . . . . . 1 Piercing Weapon . | . . . . . . Special Melee Weapon . | . . . . . . Unidentified Prototypes . | . . . . . . Parts Lost 5 | . . . . . 5 Power 2 | . . . . . 2 Propulsion 3 | . . . . . 3 Utility . | . . . . . . Weapon . | . . . . . . Highest Loss Streak 5 | . . . . . 5 To Critical Strikes . | . . . . . . Average Backups 7 | 2 7 8 8 8 6 Power . | . 1 1 1 1 . Propulsion . | . . 1 1 1 . Utility 2 | . 2 3 3 3 1 Weapon 2 | . 1 2 2 2 2 Tool/Special . | . . . . . . Unused Backups 5 | . 2 . . . 3 Power . | . . . . . . Propulsion 1 | . 1 . . . . Utility 3 | . 1 . . . 2 Weapon . | . . . . . . Tool/Special 1 | . . . . . 1 Average Slot Usage (%) 99 | . 100 100 100 100 97 Engine 12 | . 14 14 14 14 8 Leg 27 | . 28 28 28 28 25 Device 15 | . 14 14 14 14 22 Storage 12 | . 14 14 14 14 9 Processor 3 | . . . . . 13 Energy Gun 11 | . 14 14 14 14 4 Ballistic Gun 13 | . 14 14 14 14 11 Peak Build Rating 21 | 7 8 8 8 8 21 Average Rating 9 | 5 7 8 8 8 16 On Entrance 6 | . 7 8 8 8 8 Avg Prop Armor Cover (%) . | . . . . . . Naked Turns . | . . . . . . Heaviest Build 15 | 13 15 12 12 12 15 Greatest Support 30 | 20 20 20 20 20 30 Greatest Overweight (x) 1 | 1 . . . . 1 Average Overweight (x) . | . . . . . . Largest Inventory Capacity 8 | 8 8 8 8 8 8 Average Capacity 7 | 7 8 8 8 8 8 Most Carried 8 | 5 8 8 8 8 8 Average Carried 7 | 2 7 8 8 8 6 Final Capacity 8 | 8 8 8 8 8 8 Final Carried 8 | 5 8 8 8 8 7 Class Distribution -------------------- 77% | Mutant 10% | Scavenger-Mutant 6% | Scavenger-Skirmisher Dominant Class ---------------- Mutant | -10/Materials Mutant | -10/Mines Mutant | -10/Exiles Mutant | -9/Mines Scavenger-Mutant | -8/Materials Resources | -11 -10 -10 -10 -9 -8 ----------- Run | Yrd Mat Min Exi Min Mat Matter Collected 428 | 261 127 . . . 40 Remotely 40 | . . . . . 40 Salvage Created 322 | 85 210 . . . 27 Parts 24 | 4 18 . . . 2 Haulers Intercepted . | . . . . . . Recyclers Shooed . | . . . . . . Parts Field Recycled . | . . . . . . Retrieved Matter . | . . . . . . Parts Self-Destructed . | . . . . . . Prevented . | . . . . . . Parts Restored . | . . . . . . Kills | -11 -10 -10 -10 -9 -8 ------- Run | Yrd Mat Min Exi Min Mat Combat Hostiles Destroyed 11 | . 8 . . . 3 Guns 9 | . 8 . . . 1 Cannons 2 | . . . . . 2 Classes Destroyed 4 | 2 2 . . . . Tunneler 2 | 1 1 . . . . Recycler 1 | 1 . . . . . Swarmer 9 | . 6 . . . 3 Grunt 2 | . 2 . . . . Best Kill Streak 3 | 1 3 . . . 3 Combat Bots Only 3 | . 3 . . . 3 Max Kills in Single Turn 1 | 1 1 . . . 1 Gunslinging . | . . . . . . Exploded . | . . . . . . Melee . | . . . . . . Uniques/NPCs Destroyed . | . . . . . . Combat | -11 -10 -10 -10 -9 -8 -------- Run | Yrd Mat Min Exi Min Mat Hostile Shots Fired 117 | . 41 . . 7 69 Missed 27 | . 7 . . 2 18 Hits 90 | . 34 . . 5 51 Projectile 90 | . 34 . . 5 51 Critical Strikes 1 | . 1 . . . . Damage Taken 969 | . 278 . . 55 636 Core 201 | . 62 . . 11 128 Absorbed by Shields . | . . . . . . Core Remaining (%) 85 | 100 . . . 70 . Volleys Fired 57 | 7 23 . . . 27 Largest 2 | 2 2 . . . 2 Hottest 70 | 70 70 . . . 70 Shots Fired 104 | 14 46 . . . 44 Gun 89 | 14 46 . . . 29 Cannon 14 | . . . . . 14 Launcher 1 | . . . . . 1 Special . | . . . . . . Kinetic 72 | 7 23 . . . 42 Thermal 31 | 7 23 . . . 1 Explosive 1 | . . . . . 1 Electromagnetic . | . . . . . . Robot Hit Streak 6 | 2 6 . . . 5 Robot Miss Streak 6 | 2 4 . . . 6 Penetration Max . | . . . . . . Secondary Targets 3 | . 3 . . . . Max Gunslinging Chain 1 | . 1 . . . . Shots Hit Robots 58 | 8 24 . . . 26 Core Hits 27 | 3 11 . . . 13 Critical Kills . | . . . . . . Critical Parts Destroyed . | . . . . . . Critical Strikes 2 | 1 1 . . . . Burn 2 | 1 1 . . . . Melee Attacks . | . . . . . . Impact . | . . . . . . Slashing . | . . . . . . Piercing . | . . . . . . Sneak Attacks . | . . . . . . Combat Hostiles . | . . . . . . Follow-up Attacks . | . . . . . . Damage Inflicted 772 | 105 297 . . 14 356 Guns 499 | 105 297 . . . 97 Cannons 224 | . . . . . 224 Explosions 35 | . . . . . 35 Melee . | . . . . . . Ramming 14 | . . . . 14 . Kinetic 521 | 41 159 . . . 321 Thermal 202 | 64 138 . . . . Explosive 35 | . . . . . 35 Electromagnetic . | . . . . . . Impact . | . . . . . . Slashing . | . . . . . . Piercing . | . . . . . . Highest Corruption . | . . . . . . Average Corruption . | . . . . . . Corruption Purged . | . . . . . . Corruption Blocked . | . . . . . . Overload Shots . | . . . . . . Overflow Damage . | . . . . . . Projectiles . | . . . . . . Explosions . | . . . . . . Melee . | . . . . . . Knockbacks 7 | . . . . . 7 Impact . | . . . . . . Kinetic 7 | . . . . . 7 Secondary . | . . . . . . Self-Inflicted Damage 21 | . . . . . 21 Shots 1 | . . . . . 1 Rammed . | . . . . . . Targets Rammed 2 | . . . . 2 . Kicked 2 | . . . . 2 . Crushed . | . . . . . . Highest Temperature 78 | 36 78 . . . 26 Average Temperature 20 | 19 23 . . . 10 Received Heat Transfer 306 | . 42 . . 30 234 Siege Activations . | . . . . . . Martial Activations . | . . . . . . Shielding Activations . | . . . . . . Robots Disrupted . | . . . . . . Combat Hostiles . | . . . . . . Robots Corrupted . | . . . . . . Combat Hostiles . | . . . . . . Parts Fried . | . . . . . . Impact Corruptions . | . . . . . . Robots Melted . | . . . . . . Combat Hostiles . | . . . . . . Parts Melted . | . . . . . . Heat Transferred 740 | 259 481 . . . . Parts Sabotaged . | . . . . . . Parts Stolen . | . . . . . . Parts Stripped . | . . . . . . Power Chain Reactions . | . . . . . . Alert | -11 -10 -10 -10 -9 -8 ------- Run | Yrd Mat Min Exi Min Mat Maximum Alert Level . | . . . . . . Low Security (%) 100 | 100 100 100 . 100 100 Level 1 . | . . . . . . Level 2 . | . . . . . . Level 3 . | . . . . . . Level 4 . | . . . . . . Level 5 . | . . . . . . High Security . | . . . . . . Max Security . | . . . . . . Peak Influence 126 | 5 126 17 . . 33 Initial 17 | . . 17 . . . Average 24 | . 47 14 . . 6 Influence Increases 354 | 10 216 . . . 128 Destroy 0b10 Robot/C 220 | . 160 . . . 60 Destroy 0b10 Robot/NC 15 | 10 5 . . . . Destroy Leader 40 | . 30 . . . 10 Successful Hack 5 | . 5 . . . . Disable Machine 30 | . 15 . . . 15 Destroy Structure 14 | . 1 . . . 13 Partial Spotted 30 | . . . . . 30 Influence Decreases 354 | 10 170 39 7 . 128 Entered New Map 36 | . . 29 7 . . Time Decay 274 | 10 170 10 . . 84 Lost Part 44 | . . . . . 44 Squads Dispatched 4 | . 2 . . . 2 Investigation . | . . . . . . Extermination . | . . . . . . Reinforcement 3 | . 2 . . . 1 Assault . | . . . . . . Garrison 1 | . . . . . 1 Intercept . | . . . . . . Searches Triggered . | . . . . . . Construction Impeded . | . . . . . . Haulers Reinforced . | . . . . . . Active Scanning Responses . | . . . . . . Cargo Convoy Interrupts . | . . . . . . Stealth | -11 -10 -10 -10 -9 -8 --------- Run | Yrd Mat Min Exi Min Mat Distress Signals 1 | . 1 . . . . Communications Jammed . | . . . . . . Distress Signals . | . . . . . . Times Spotted 29 | . 13 . . 3 13 Peak Tracking Total 9 | . 4 . . 4 9 Tactical Retreats . | . . . . . . Traps | -11 -10 -10 -10 -9 -8 ------- Run | Yrd Mat Min Exi Min Mat Traps Triggered 1 | . . . . . 1 Indirectly . | . . . . . . Trap Hack Attempts . | . . . . . . Triggered . | . . . . . . Disarmed . | . . . . . . Reprogrammed . | . . . . . . Reused . | . . . . . . Traps Extracted . | . . . . . . Installed . | . . . . . . Triggered . | . . . . . . Machines | -11 -10 -10 -10 -9 -8 ---------- Run | Yrd Mat Min Exi Min Mat Machines Disabled 2 | . 1 . . . 1 Max in Single Turn 1 | . 1 . . . 1 Machines Repaired . | . . . . . . Machines Dismantled . | . . . . . . Machines Sabotaged . | . . . . . . Overloaded Fab Kills . | . . . . . . Hacking | -11 -10 -10 -10 -9 -8 --------- Run | Yrd Mat Min Exi Min Mat Machines Accessed 6 | . 2 . 4 . . Terminals 2 | . 2 . . . . Fabricators . | . . . . . . Repair Stations . | . . . . . . Recycling Units . | . . . . . . Scanalyzers . | . . . . . . Garrison Access . | . . . . . . Total Hacks 52 | . 3 . 49 . . Successful 52 | . 3 . 49 . . Failed . | . . . . . . Catastrophic . | . . . . . . Database Lockouts . | . . . . . . Manual 1 | . . . 1 . . Terminals 3 | . 3 . . . . Fabricators . | . . . . . . Repair Stations . | . . . . . . Recycling Units . | . . . . . . Scanalyzers . | . . . . . . Garrison Access . | . . . . . . Terminal Hacks 52 | . 3 . 49 . . Record 49 | . . . 49 . . Prototype ID Bank 1 | . 1 . . . . Alert Level 1 | . 1 . . . . Dispatch Records 1 | . 1 . . . . Fabricator Hacks . | . . . . . . Repair Station Hacks . | . . . . . . Recycling Unit Hacks . | . . . . . . Scanalyzer . | . . . . . . Garrison Access Hacks . | . . . . . . Unauthorized Hacks . | . . . . . . Terminals . | . . . . . . Fabricators . | . . . . . . Repair Stations . | . . . . . . Recycling Units . | . . . . . . Scanalyzers . | . . . . . . Garrison Access . | . . . . . . Data Cores Recovered . | . . . . . . Used . | . . . . . . Hacking Detections . | . . . . . . Full Trace Events . | . . . . . . Feedback Events . | . . . . . . Feedback Blocked . | . . . . . . Robot Schematics Acquired . | . . . . . . Robots Built . | . . . . . . Authchips . | . . . . . . Time . | . . . . . . Total Robot Build Rating . | . . . . . . Part Schematics Acquired . | . . . . . . Parts Built . | . . . . . . Authchips . | . . . . . . Time . | . . . . . . Total Part Build Rating . | . . . . . . Part Studies Acquired . | . . . . . . Parts Repaired . | . . . . . . Time . | . . . . . . Parts Recycled . | . . . . . . Recycled Matter . | . . . . . . Retrieved Matter . | . . . . . . Retrieved Components . | . . . . . . Parts Scanalyzed . | . . . . . . Part Schematics Acquired . | . . . . . . Parts Damaged . | . . . . . . Bothacking | -11 -10 -10 -10 -9 -8 ------------ Run | Yrd Mat Min Exi Min Mat Used RIF Installer . | . . . . . . Robots Hacked . | . . . . . . Non-combat . | . . . . . . Combat . | . . . . . . Robot Hacks Applied . | . . . . . . Relay Couplers Released . | . . . . . . Fabnet Peak Effective % . | . . . . . . Robots Rewired . | . . . . . . Allies Hacked . | . . . . . . Hacks Repelled . | . . . . . . Allies | -11 -10 -10 -10 -9 -8 -------- Run | Yrd Mat Min Exi Min Mat Total Allies . | . . . . . . Largest Group . | . . . . . . Highest-Rated Group . | . . . . . . Highest-Rated Ally . | . . . . . . Total Orders . | . . . . . . Ally Attacks . | . . . . . . Total Damage . | . . . . . . Kills . | . . . . . . Allies Corrupted . | . . . . . . Allies Melted . | . . . . . . Intel | -11 -10 -10 -10 -9 -8 ------- Run | Yrd Mat Min Exi Min Mat Active Infowar (turns) 1885 | 53 487 26 846 38 435 Sensors 224 | . . . . . 224 Terrain 433 | . . . . . 433 Seismic 1660 | 53 487 26 846 38 210 Robot Analysis Total . | . . . . . . Derelict Logs Recovered 1 | . . . . 1 . Drone Launches . | . . . . . . Drone Recoveries . | . . . . . . Exploration | -11 -10 -10 -10 -9 -8 ------------- Run | Yrd Mat Min Exi Min Mat Turns Passed 1925 | 93 487 26 846 38 435 Spaces Moved 1295 | 47 273 22 704 30 219 Core 4 | 4 . . . . . Treads . | . . . . . . Legs 1291 | 43 273 22 704 30 219 Wheels . | . . . . . . Hover . | . . . . . . Flight . | . . . . . . Fastest Speed 50 | 50 120 120 120 120 120 Average Speed 120 | 120 120 120 120 120 120 Slowest Speed 190 | 190 120 120 120 120 190 Overloaded Moves . | . . . . . . Propulsion Burnouts . | . . . . . . Robots Hopped . | . . . . . . Potential Cave-ins . | . . . . . . Cave-ins Triggered . | . . . . . . Exploration Rate (%) 30 | 3 40 8 92 14 23 Regions Visited 5 Branch Regions 3 Pre-discovered Areas 1 | . . . 1 . . Known Exits Taken 1 | . . . . 1 . Unknown Exits Taken 4 | 1 1 1 1 . . Scrap Searched . | . . . . . . Spaces Dug . | . . . . . . Terrain Destroyed 12 | . . . . . 12 Melee . | . . . . . . Projectile . | . . . . . . AOE 12 | . . . . . 12 Terrain Rammed . | . . . . . . Walls Destroyed . | . . . . . . Machines Disabled . | . . . . . . Actions | -11 -10 -10 -10 -9 -8 --------- Run | Yrd Mat Min Exi Min Mat Total 1566 | 66 389 21 705 31 354 Wait 164 | . 81 . . . 83 Move 1290 | 46 272 21 703 29 219 Hop . | . . . . . . Pick Up 17 | 6 5 . . . 6 Fast Attach 8 | 6 . . . . 2 Attach 10 | 1 . . . . 9 Detach 4 | . . . . . 4 Swap 3 | . 3 . . . . Drop 9 | . 5 . . . 4 Fire 57 | 7 23 . . . 27 Melee . | . . . . . . Ram . | . . . . . . Kick 2 | . . . . 2 . Crush . | . . . . . . Escape Stasis . | . . . . . . Rewire 2 | . . . 2 . . Trap . | . . . . . . Miscellaneous . | . . . . . . Route ------- -11/Scrapyard -10/Materials -10/Mines -10/Exiles (discovered 2 exits: [*Min x2]) -9/Mines -8/Materials (discovered 1 exit: *Fac) History --------- Turn | Location | Event 5 | -11/Scrapyard | Discovered new exit (range 15) 94 | -11/Scrapyard | Entered Materials 316 | -10/Materials | Build established: Mutant 514 | -10/Materials | Discovered new exit (range 15) 581 | -10/Materials | Entered Mines 596 | -10/Mines | Deemed a non-threat by the Exiles lab entrance 597 | -10/Mines | Discovered new exit (range 5) 607 | -10/Mines | Entered Exiles 631 | -10/Exiles | Discovered new exit (range 14) 654 | -10/Exiles | Met 8R-AWN 678 | -10/Exiles | Met EX-HEX 743 | -10/Exiles | Met EX-DEC 778 | -10/Exiles | Visited The Gauntlet 941 | -10/Exiles | Learned location of Zion (-6) 997 | -10/Exiles | Discovered new exit (range 10) 1074 | -10/Exiles | Met EX-BIN 1453 | -10/Exiles | Entered Mines 1471 | -9/Mines | Identified exit to Materials 1491 | -9/Mines | Entered Materials 1491 | -8/Materials | Evolved 4 slots: Propulsion x1, Utility x3 1801 | -8/Materials | Discovered new exit (range 15) 1818 | -8/Materials | Identified exit to Factory 1905 | -8/Materials | Garrison activated, responded to threat 1926 | -8/Materials | Self-destructed Last Messages --------------- 01879_ Acquired Axe. 01880_ S-10 Pest knocked back. 01883_ S-10 Pest destroyed. 01885_ G-47 Trooper knocked back. 01895_ K-01 Serf collects debris. 01897_ Destroyed Flight Unit. 01899_ K-01 Serf collects debris. 01899_ S-10 Pest destroyed. 01901_ Lgt. Ion Engine destroyed. 01902_ K-01 Serf collects debris. 01902_ G-47 Trooper knocked back. 01905_ G-47 Trooper calls for garrison reinforcements. 01905_ ALERT: Activating Garrison Access M001. 01907_ K-01 Serf collects debris. 01915_ Aluminum Leg destroyed. 01916_ R-06 Scavenger collects Lgt. Ion Engine. 01920_ R-06 Scavenger collects Flight Unit. 01920_ R-06 Scavenger knocked back. 01921_ Aluminum Leg destroyed. Map ----- +----------------------------------------------------+ | ????????????????????????????? ? ??? # < ##????? | | ????????????????????????????# ????? ?# ##????? | | ???????????????????????????## #?"?? ?# #?#??#? | | ????????????????????????????# #???? ?# #????#? | | ?????????????????????????##?# #??"" # #?#?#?? | | ??????????????????????????#?# + "? ??# #???#?? | | ?????????????????#?????????## # ??? # #?#?#?? | | ????????????????????? ? ??## # ? ? # ###?#?? | | ????????????????????? ?? #?## ######## ###?##? | | ??????????????? ??? ?"" ??# T * ####### | | ???????????????? ?? ??"" ### T | | ??????????????????# "?? #"" | | ?????????????????#??#?#??#"Y " | | ?????????????????#?##?#?##"" "" | | ???????????????#?###?#???### " "" ^ | | ???????????????###! #?#### | | ?????????????#??#! ?## """ | | ?????????????#### ??# """ "" "" | | ???????????????## ## """ " " """ | | ???????????? "[" """ | | ????????????#?#??## uu w | | ??????????????????# #######g###"T"# | | ????????????????#?? ##?# % ##### === """ | | ???????????? ?? #?# #??# ##### === """ | | ?????????????T???## ####g% ##### == "" [ | | ?????????????"" ?## /r@ #?### | | ?????????????? ### ####k ###?# [ | | ?????????????+??#?# ##?# ##?## ###+###### | | ????????????????????##?########?#?####### !### | | ??????????? ??#?+?#?# ? ? ? ??###?####?## #?# | | ??????????????? ?#? ?? T ########### """### | | ??????????? ??? ? ?# ?? ? ####??#??## """### | | ????????????????? ?#?? ??? ##??#??#### """### | | ????????????????? ?#?##??#??############ #?# | | ?????????????????? ?#???? #?###?######??#####+#### | | ???????????????????##???#?#######?########### #### | | ??????????????????##?#?## #?##?###?########?# ###? | | ?????????????????#?????#??########?##??###### #### | | ????????????????????????? ??##??#?####?### # | | ?????????????????????????????????#?######## | | ????????????????????????????#?##?###?#?### | | ????????????????????????????????##?####### | | ?????????????????????????????????##???##?## # | | ?????????????????????????????????##?####### # # | | ????????????????????????????#?##?##?#??#?# | | ??????????????????????????????#???????##?# """ | | ????????????????????????????????##?#????## """ | | ???????????????????????????????##???#??### """ | | ???????????????????????????????#????##??## | | ?????????????????????????????????#?###???# """ ! | +----------------------------------------------------+ Best States ------------- Heat Dissipation 31 Energy Generation 10 Energy Capacity 250 Matter Stores 300 Matter Capacity 300 Sight Range 16 Robot Scan Range 15 Terrain Scan Range 16 Terrain Scan Density 85 Evasion (%) 55 Item Schematics ----------------- None Robot Schematics ------------------ None Fabricated ------------ Nothing Repaired ---------- Nothing Studied --------- None Alien Tech Used ----------------- None Achievements -------------- Deductive Reasoning Librarian Challenges ------------ None Game ------ Seed HardlightThermicMindspike Manual? 0 Play Time 00:28:51 Cumulative 16.9 hours Start 2026.03.18 @ 16:43:51 End 2026.03.18 @ 17:11:28 Sessions 1 Manual Loads 0 Difficulty Rogue Special Mode None Game No. 32 Rogue 32 Adventurer 0 Explorer 0 Win Type - Total 0 Types 0/0/0/0/0/0/0/0/0/0 Lore% 9 Gallery% 18 Achievement% 15 Wizard Run 0 Options --------- Layout 1 ASCII 0 Keyboard 0 Movement Arrows Keybinds 0 Fullscreen 1 Font 24/Smallcaps Map View 50x35 Zoom Use 0% Tactical HUD 1 Map Filters NONE Filters NONE Steam 1 RUN: ee06f02f-9cd2-482f-92e7-97df66006f58